fUST/lending_fUST_20260619
["ID","MTS","AMOUNT","RATE_DAILY","PERIOD"]
[425719013,1781874649000,-67963.99499954,0.000171,2]
[425719018,1781874649000,-500.0,0.00017151,2]
[425719021,1781874649000,-500.0,0.00017151,2]
[425719020,1781874649000,-500.0,0.00017151,2]
[425719012,1781874649000,-996803.42847597,0.000171,2]
[425719025,1781874649000,-413.82147096,0.00017151,2]
[425719016,1781874649000,-177.01541555,0.00017132,2]
[425719015,1781874649000,-181.662,0.00017132,2]
[425719023,1781874649000,-500.0,0.00017151,2]
[425719019,1781874649000,-326.30959889,0.00017151,2]
[425719006,1781874649000,-3777.36054386,0.000171,2]
[425719004,1781874649000,-1482.61,0.000171,2]
[425719027,1781874649000,-614.71891029,0.00017151,2]
[425719017,1781874649000,-1482.61,0.00017151,2]
[425719030,1781874649000,-361.46032366,0.00017151,2]
[425719037,1781874649000,-500.0,0.00017151,2]
[425719036,1781874649000,-500.0,0.00017151,2]
[425719033,1781874649000,-500.0,0.00017151,2]
[425719052,1781874649000,-500.0,0.00017157,2]
[425719048,1781874649000,-356.69570335,0.00017157,2]
[425719049,1781874649000,-500.0,0.00017157,2]
[425719045,1781874649000,-500.0,0.00017157,2]
[425719044,1781874649000,-13804.50089089,0.00017152,2]
[425719046,1781874649000,-500.0,0.00017157,2]
[425719047,1781874649000,-500.0,0.00017157,2]
[425719043,1781874649000,-500.0,0.00017151,2]
[425719053,1781874649000,-500.0,0.00017157,2]
[425719042,1781874649000,-500.0,0.00017151,2]
[425719039,1781874649000,-500.0,0.00017151,2]
[425719050,1781874649000,-500.0,0.00017157,2]
[425719051,1781874649000,-500.0,0.00017157,2]
[425719040,1781874649000,-500.0,0.00017151,2]
[425719038,1781874649000,-500.0,0.00017151,2]
[425719034,1781874649000,-500.0,0.00017151,2]
[425719035,1781874649000,-500.0,0.00017151,2]
[425719041,1781874649000,-500.0,0.00017151,2]
[425719065,1781874650000,-10000.0,0.000172,2]
[425719067,1781874650000,-151.0,0.000172,2]
[425719077,1781874650000,-151.0,0.00017232,2]
[425719068,1781874650000,-536.446003,0.000172,2]
[425719069,1781874650000,-536.446003,0.000172,2]
[425719061,1781874650000,-184.04363609,0.00017157,2]
[425719078,1781874650000,-151.0,0.00017232,2]
[425719063,1781874650000,-153.74650945,0.000172,2]
[425719059,1781874650000,-151.5,0.00017157,2]
[425719054,1781874650000,-316.67979508,0.00017157,2]
[425719064,1781874650000,-154.36268306,0.000172,2]
[425719062,1781874650000,-220.50740612,0.00017159,2]
[425719058,1781874650000,-151.5,0.00017157,2]
[425719056,1781874650000,-500.0,0.00017157,2]
[425719057,1781874650000,-467.09391694,0.00017157,2]
[425719055,1781874650000,-500.0,0.00017157,2]
[425719060,1781874650000,-151.5,0.00017157,2]
[425719074,1781874650000,-151.0,0.00017232,2]
[425719066,1781874650000,-178.83441,0.000172,2]
[425719072,1781874650000,-151.0,0.00017232,2]
[425719089,1781874650000,-536.446003,0.00017232,2]
[425719088,1781874650000,-536.446003,0.00017232,2]
[425719087,1781874650000,-536.446003,0.00017232,2]
[425719091,1781874650000,-70952.4892949,0.00017232,2]
[425719090,1781874650000,-536.446003,0.00017232,2]
[425719086,1781874650000,-151.0,0.00017232,2]
[425719085,1781874650000,-151.0,0.00017232,2]
[425719081,1781874650000,-151.0,0.00017232,2]
[425719082,1781874650000,-151.0,0.00017232,2]
[425719084,1781874650000,-151.0,0.00017232,2]
[425719080,1781874650000,-192.591924,0.00017232,2]
[425719079,1781874650000,-151.0,0.00017232,2]
[425719073,1781874650000,-151.0,0.00017232,2]
[425719076,1781874650000,-251.618297,0.00017232,2]
[425719070,1781874650000,-536.446003,0.000172,2]
[425719075,1781874650000,-151.0,0.00017232,2]
[425719083,1781874650000,-151.0,0.00017232,2]
[425719071,1781874650000,-536.446003,0.000172,2]
[425719127,1781875285000,1000.0,8.603e-05,2]
[425719131,1781875324000,930.0,8e-05,10]
[425719132,1781875325000,-464.63158866,0.0001,2]
[425719147,1781875832000,-433.45811007,0.00013326,2]
[425719164,1781875838000,-4566.54188993,0.00013326,2]
[425719185,1781875838000,-743.08537703,0.00016516,2]
[425719180,1781875838000,-500.0,0.00016514,2]
[425719177,1781875838000,-500.0,0.00016514,2]
[425719178,1781875838000,-500.0,0.00016514,2]
[425719179,1781875838000,-500.0,0.00016514,2]
[425719175,1781875838000,-524.15544242,0.00016432,2]
[425719186,1781875838000,-188.181784,0.00016756,2]
[425719176,1781875838000,-500.0,0.00016514,2]
[425719181,1781875838000,-500.0,0.00016514,2]
[425719165,1781875838000,-4434.6217029,0.00013461,2]
[425719173,1781875838000,-240.494186,0.00015968,2]
[425719172,1781875838000,-162.13598659,0.00015714,2]
[425719174,1781875838000,-436.70805613,0.00016128,2]
[425719168,1781875838000,-515.82430434,0.00014588,2]
[425719171,1781875838000,-947.189209,0.0001571,2]
[425719170,1781875838000,-1705.3069358,0.00015251,2]
[425719166,1781875838000,-5000.0,0.00013597,2]
[425719167,1781875838000,-152.0,0.00014092,7]
[425719169,1781875838000,-732.8745443,0.00015134,2]
[425719182,1781875838000,-500.0,0.00016514,2]
[425719193,1781875838000,-500.0,0.00016788,2]
[425719184,1781875838000,-500.0,0.00016515,2]
[425719206,1781875838000,-931.43834698,0.00016951,2]
[425719203,1781875838000,-500.0,0.0001695,2]
[425719204,1781875838000,-500.0,0.0001695,2]
[425719205,1781875838000,-61748.77472605,0.00016951,2]
[425719201,1781875838000,-500.0,0.0001695,2]
[425719202,1781875838000,-500.0,0.0001695,2]
[425719183,1781875838000,-500.0,0.00016514,2]
[425719200,1781875838000,-500.0,0.0001695,2]
[425719194,1781875838000,-500.0,0.00016788,2]
[425719197,1781875838000,-834.22,0.00016941,3]
[425719199,1781875838000,-500.0,0.0001695,2]
[425719195,1781875838000,-500.0,0.00016789,2]
[425719198,1781875838000,-500.0,0.0001695,2]
[425719196,1781875838000,-278.06,0.00016941,3]
[425719192,1781875838000,-502.95469419,0.00016788,2]
[425719187,1781875838000,-500.0,0.00016788,2]
[425719189,1781875838000,-500.0,0.00016788,2]
[425719191,1781875838000,-500.0,0.00016788,2]
[425719190,1781875838000,-500.0,0.00016788,2]
[425719188,1781875838000,-500.0,0.00016788,2]
[425719208,1781875840000,-500.0,0.00016788,2]
[425719209,1781875840000,-221.60926296,0.00016951,2]
[425719207,1781875840000,-500.0,0.00016514,2]
[425719249,1781875846000,-500.0,0.00016514,2]
[425719251,1781875846000,-5000.0,0.00016781,2]
[425719255,1781875846000,-760.76031702,0.00016951,2]
[425719256,1781875846000,-396.54944253,0.00016951,2]
[425719253,1781875846000,-129658.19634139,0.00016951,2]
[425719250,1781875846000,-500.0,0.00016514,2]
[425719254,1781875846000,-2769.49731269,0.00016951,2]
[425719259,1781875846000,-572.22010432,0.00016951,2]
[425719263,1781875846000,-1902.04860122,0.00016957,2]
[425719258,1781875846000,-819.30227355,0.00016951,2]
[425719261,1781875846000,-8825.22434953,0.00016951,2]
[425719252,1781875846000,-500.0,0.00016788,2]
[425719260,1781875846000,-3165.20752339,0.00016951,2]
[425719257,1781875846000,-6737.03391632,0.00016951,2]
[425719262,1781875846000,-13239.42601376,0.00016957,2]
[425719616,1781875926000,-266.58174353,0.0001,2]
[425719615,1781875926000,-764.15596448,0.0001,2]
[425719638,1781876614000,-285.21188315,8.955e-05,2]
[425719639,1781876616000,-213.47024934,8.955e-05,2]
[425719641,1781876617000,-391.16871995,8.955e-05,2]
[425719642,1781876618000,-205.01718453,8.955e-05,2]
[425719643,1781876619000,-152.0,8.955e-05,2]
[425719644,1781876629000,-532.22061015,8.865e-05,2]
[425719645,1781876631000,-199.53298916,8.865e-05,2]
[425719646,1781876632000,-325.37338204,8.865e-05,2]
[425719647,1781876633000,-373.76540452,8.865e-05,2]
[425719648,1781876634000,-357.79190872,8.865e-05,2]
[425719649,1781876635000,-357.50802954,8.865e-05,2]
[425719650,1781876636000,-302.75794328,8.865e-05,2]
[425719651,1781876640000,-726.15379889,8.865e-05,2]
[425719652,1781876641000,-500.0,8.865e-05,2]
[425719653,1781876642000,-221.89056234,8.865e-05,2]
[425719654,1781876644000,-239.64878799,8.865e-05,2]
[425719655,1781876645000,-336.88679517,8.865e-05,2]
[425719656,1781876649000,-423.20997246,8.865e-05,2]
[425719658,1781876706000,-152.0,8.776e-05,2]
[425719659,1781876707000,-306.25961643,8.776e-05,2]
[425719660,1781876708000,-235.73214119,8.776e-05,2]
[425719661,1781876709000,-715.97383072,8.776e-05,2]
[425719663,1781876805000,-772.16357969,8.688e-05,2]
[425719665,1781876806000,-239.64878799,8.688e-05,2]
[425719664,1781876806000,-272.54731374,8.688e-05,2]
[425719666,1781876807000,-152.0,8.688e-05,2]
[425719667,1781876808000,-302.46804711,8.688e-05,2]
[425719668,1781876809000,-452.04527946,8.688e-05,2]
[425719669,1781876810000,-197.49437109,8.688e-05,2]
[425719670,1781876820000,5000.0,8.602e-05,2]
[425719671,1781876843000,4845.74470924,8.602e-05,2]
[425719674,1781876952000,-189.4383689,8.688e-05,2]
[425719675,1781876952000,-152.0,8.688e-05,2]
[425719676,1781876952000,-274.4696311,8.688e-05,2]
[425719689,1781877000000,3064.38017478,8.602e-05,2]
[425719724,1781877040000,-1997.63169329,0.0001,2]
[425719733,1781877040000,-1972.9440825,0.0001,2]
[425719735,1781877040000,-514.29610188,0.0001,2]
[425719734,1781877040000,-188.35454733,0.0001,2]
[425719739,1781877040000,-3486.11704223,0.00011876,2]
[425719736,1781877040000,-4919.3065749,0.00011537,2]
[425719737,1781877040000,-25543.0464873,0.00011809,2]
[425719741,1781877040000,-337.8745744,0.00012645,2]
[425719738,1781877040000,-4744.20014732,0.00011876,2]
[425719740,1781877040000,-778.4415515,0.00011976,2]
[425719742,1781877040000,-165.333351,0.00013196,2]
[425719744,1781877040000,-5776.27791526,0.0001352,2]
[425719752,1781877040000,-730.5255881,0.00015552,2]
[425719754,1781877040000,-2027.20850697,0.00015552,2]
[425719743,1781877040000,-2454.03927423,0.0001352,2]
[425719746,1781877040000,-209.90953832,0.00013751,2]
[425719761,1781877040000,-500.0,0.00016438,2]
[425719757,1781877040000,-457.5797583,0.00015933,2]
[425719758,1781877040000,-165.333351,0.00015974,2]
[425719748,1781877040000,-165.333351,0.00014585,2]
[425719762,1781877040000,-430.35986315,0.00016438,2]
[425719759,1781877040000,-151.9496315,0.00016438,2]
[425719756,1781877040000,-330.99838584,0.00015552,2]
[425719760,1781877040000,-500.0,0.00016438,2]
[425719751,1781877040000,-405.84754894,0.00015552,2]
[425719750,1781877040000,-500.0,0.00015195,2]
[425719749,1781877040000,-8230.31718949,0.00015163,2]
[425719745,1781877040000,-217.36559597,0.00013751,2]
[425719753,1781877040000,-1298.71215662,0.00015552,2]
[425719747,1781877040000,-549.6434173,0.00013751,2]
[425719755,1781877040000,-184.0720642,0.00015552,2]
[425719800,1781877047000,-319.505,0.00016274,2]
[425719802,1781877047000,-500.0,0.00016438,2]
[425719801,1781877047000,-69.64013685,0.00016438,2]
[425719803,1781877047000,-500.0,0.00016438,2]
[425719804,1781877047000,-500.0,0.00016438,2]
[425719805,1781877047000,-500.0,0.00016438,2]
[425719807,1781877047000,-374.91122748,0.00016438,2]
[425719806,1781877047000,-500.0,0.00016438,2]
[425719810,1781877047000,-500.0,0.00016438,2]
[425719809,1781877047000,-500.0,0.00016438,2]
[425719811,1781877047000,-156.02192502,0.00016438,2]
[425719814,1781877047000,-379.10807498,0.00016438,2]
[425719818,1781877047000,-500.0,0.00016438,2]
[425719819,1781877047000,-400.9824356,0.00016438,2]
[425719816,1781877047000,-500.0,0.00016438,2]
[425719808,1781877047000,-116.16765782,0.00016438,2]
[425720026,1781877451000,31317.64740207,7.6e-05,2]
[425720029,1781877635000,-262.86272438,8.862e-05,7]
[425720030,1781877652000,-2064.57340118,9.228e-05,2]
[425720031,1781877668000,-2035.91777955,9.228e-05,2]
[425720033,1781877685000,-2064.57340118,9.228e-05,2]
[425720034,1781877702000,-899.50881927,9.228e-05,2]
[425720035,1781877719000,-514.93746891,9.321e-05,2]
[425720037,1781877736000,-394.29408659,9.383e-05,7]
[425720038,1781877753000,-300.0,9.999e-05,2]
[425726811,1781878239000,-625.0,0.00013698,2]
[425726801,1781878239000,-340.41290354,0.0001,2]
[425726804,1781878239000,-300.0,0.00012933,2]
[425726803,1781878239000,-1476.8101117,0.00012438,2]
[425726805,1781878239000,-109.40152108,0.00012934,2]
[425726808,1781878239000,-7146.68019782,0.00012934,2]
[425726810,1781878239000,-625.0,0.00013698,2]
[425726809,1781878239000,-567.90634422,0.00013,2]
[425726802,1781878239000,-1082.57964246,0.0001,2]
[425726817,1781878239000,-165.333352,0.0001455,2]
[425726815,1781878239000,-392.0,0.00014184,2]
[425726813,1781878239000,-286.707287,0.00013699,2]
[425726819,1781878239000,-625.0,0.00015162,2]
[425726820,1781878239000,-193.61,0.00015723,2]
[425726821,1781878239000,-457.9711583,0.00015933,2]
[425726822,1781878239000,-326.9115635,0.00015985,2]
[425726824,1781878239000,-326.9115635,0.00015985,2]
[425726818,1781878239000,-312.92546523,0.00015,2]
[425726845,1781878240000,-500.0,0.00016438,2]
[425726851,1781878240000,-500.0,0.00016438,2]
[425726849,1781878240000,-500.0,0.00016438,2]
[425726848,1781878240000,-500.0,0.00016438,2]
[425726850,1781878240000,-500.0,0.00016438,2]
[425726862,1781878240000,-500.0,0.00016438,2]
[425726853,1781878240000,-500.0,0.00016438,2]
[425726856,1781878240000,-1000.0,0.00016438,2]
[425726843,1781878240000,-500.0,0.00016438,2]
[425726855,1781878240000,-500.0,0.00016438,2]
[425726859,1781878240000,-500.0,0.00016438,2]
[425726858,1781878240000,-500.0,0.00016438,2]
[425726852,1781878240000,-500.0,0.00016438,2]
[425726842,1781878240000,-500.0,0.00016438,2]
[425726839,1781878240000,-500.0,0.00016438,2]
[425726844,1781878240000,-500.0,0.00016438,2]
[425726841,1781878240000,-500.0,0.00016438,2]
[425726835,1781878240000,-500.0,0.00016438,2]
[425726829,1781878240000,-1000.0,0.00016435,5]
[425726830,1781878240000,-503.30440161,0.00016437,2]
[425726831,1781878240000,-625.0,0.00016437,2]
[425726833,1781878240000,-500.0,0.00016437,2]
[425726834,1781878240000,-500.0,0.00016438,2]
[425726828,1781878240000,-500.0,0.0001637,2]
[425726827,1781878240000,-500.0,0.0001637,2]
[425726825,1781878240000,-1000.0,0.00016,2]
[425726826,1781878240000,-5750.44329049,0.00016338,2]
[425726854,1781878240000,-500.0,0.00016438,2]
[425726846,1781878240000,-500.0,0.00016438,2]
[425726861,1781878240000,-374.91122748,0.00016438,2]
[425726863,1781878240000,-500.0,0.00016438,2]
[425726867,1781878240000,-500.0,0.00016438,2]
[425726860,1781878240000,-500.0,0.00016438,2]
[425726897,1781878240000,-500.0,0.00016438,2]
[425726893,1781878240000,-500.0,0.00016438,2]
[425726888,1781878240000,-500.0,0.00016438,2]
[425726892,1781878240000,-500.0,0.00016438,2]
[425726891,1781878240000,-500.0,0.00016438,2]
[425726896,1781878240000,-500.0,0.00016438,2]
[425726895,1781878240000,-500.0,0.00016438,2]
[425726887,1781878240000,-500.0,0.00016438,2]
[425726889,1781878240000,-500.0,0.00016438,2]
[425726882,1781878240000,-1387.2548,0.00016438,2]
[425726886,1781878240000,-500.0,0.00016438,2]
[425726884,1781878240000,-500.0,0.00016438,2]
[425726877,1781878240000,-500.0,0.00016438,2]
[425726885,1781878240000,-500.0,0.00016438,2]
[425726890,1781878240000,-500.0,0.00016438,2]
[425726878,1781878240000,-500.0,0.00016438,2]
[425726879,1781878240000,-500.0,0.00016438,2]
[425726864,1781878240000,-613.84626154,0.00016438,2]
[425726865,1781878240000,-500.0,0.00016438,2]
[425726868,1781878240000,-500.0,0.00016438,2]
[425726873,1781878240000,-500.0,0.00016438,2]
[425726874,1781878240000,-500.0,0.00016438,2]
[425726871,1781878240000,-500.0,0.00016438,2]
[425726876,1781878240000,-500.0,0.00016438,2]
[425726872,1781878240000,-503.62266987,0.00016438,2]
[425726869,1781878240000,-500.0,0.00016438,2]
[425726870,1781878240000,-500.0,0.00016438,2]
[425726880,1781878240000,-500.0,0.00016438,2]
[425726881,1781878240000,-500.0,0.00016438,2]
[425726938,1781878241000,-500.0,0.00016438,2]
[425726931,1781878241000,-500.0,0.00016438,2]
[425726928,1781878241000,-500.0,0.00016438,2]
[425726936,1781878241000,-500.0,0.00016438,2]
[425726937,1781878241000,-500.0,0.00016438,2]
[425726940,1781878241000,-500.0,0.00016438,2]
[425726932,1781878241000,-500.0,0.00016438,2]
[425726935,1781878241000,-500.0,0.00016438,2]
[425726947,1781878241000,-500.0,0.00016438,2]
[425726941,1781878241000,-500.0,0.00016438,2]
[425726942,1781878241000,-500.0,0.00016438,2]
[425726945,1781878241000,-500.0,0.00016438,2]
[425726944,1781878241000,-500.0,0.00016438,2]
[425726943,1781878241000,-500.0,0.00016438,2]
[425726946,1781878241000,-521.16,0.00016438,2]
[425726927,1781878241000,-500.0,0.00016438,2]
[425726934,1781878241000,-500.0,0.00016438,2]
[425726929,1781878241000,-500.0,0.00016438,2]
[425726904,1781878241000,-500.0,0.00016438,2]
[425726925,1781878241000,-500.0,0.00016438,2]
[425726948,1781878241000,-500.0,0.00016438,2]
[425726900,1781878241000,-500.0,0.00016438,2]
[425726901,1781878241000,-500.0,0.00016438,2]
[425726899,1781878241000,-500.0,0.00016438,2]
[425726898,1781878241000,-500.0,0.00016438,2]
[425726906,1781878241000,-500.0,0.00016438,2]
[425726911,1781878241000,-500.0,0.00016438,2]
[425726909,1781878241000,-500.0,0.00016438,2]
[425726914,1781878241000,-500.0,0.00016438,2]
[425726912,1781878241000,-500.0,0.00016438,2]
[425726916,1781878241000,-229.56525872,0.00016438,2]
[425726918,1781878241000,-500.0,0.00016438,2]
[425726920,1781878241000,-500.0,0.00016438,2]
[425726921,1781878241000,-1000.0,0.00016438,2]
[425726923,1781878241000,-500.0,0.00016438,2]
[425726924,1781878241000,-500.0,0.00016438,2]
[425726922,1781878241000,-500.0,0.00016438,2]
[425726926,1781878241000,-500.0,0.00016438,2]
[425726950,1781878241000,-500.0,0.00016438,2]
[425726933,1781878241000,-500.0,0.00016438,2]
[425726951,1781878241000,-203.4484675,0.00016438,2]
[425726975,1781878241000,-500.0,0.00016438,2]
[425726973,1781878241000,-500.0,0.00016438,2]
[425726977,1781878241000,-500.0,0.00016438,2]
[425726974,1781878241000,-500.0,0.00016438,2]
[425726980,1781878241000,-500.0,0.00016438,2]
[425726982,1781878241000,-500.0,0.00016438,2]
[425726983,1781878241000,-500.0,0.00016512,2]
[425726984,1781878241000,-568.40531378,0.00016512,2]
[425726989,1781878241000,-500.0,0.00016514,2]
[425726986,1781878241000,-625.0,0.00016513,2]
[425726985,1781878241000,-500.0,0.00016513,2]
[425726988,1781878241000,-500.0,0.00016514,2]
[425726987,1781878241000,-625.0,0.00016513,2]
[425726991,1781878241000,-500.0,0.00016514,2]
[425726992,1781878241000,-500.0,0.00016515,2]
[425726993,1781878241000,-500.0,0.00016515,2]
[425726952,1781878241000,-500.0,0.00016438,2]
[425726978,1781878241000,-500.0,0.00016438,2]
[425726976,1781878241000,-500.0,0.00016438,2]
[425726981,1781878241000,-500.0,0.00016438,2]
[425726968,1781878241000,-500.0,0.00016438,2]
[425726972,1781878241000,-2297.82,0.00016438,2]
[425726954,1781878241000,-500.0,0.00016438,2]
[425726955,1781878241000,-500.0,0.00016438,2]
[425726959,1781878241000,-500.0,0.00016438,2]
[425726960,1781878241000,-500.0,0.00016438,2]
[425726956,1781878241000,-500.0,0.00016438,2]
[425726958,1781878241000,-500.0,0.00016438,2]
[425726961,1781878241000,-500.0,0.00016438,2]
[425726967,1781878241000,-500.0,0.00016438,2]
[425726953,1781878241000,-500.0,0.00016438,2]
[425726962,1781878241000,-500.0,0.00016438,2]
[425726963,1781878241000,-500.0,0.00016438,2]
[425726965,1781878241000,-479.44783022,0.00016438,2]
[425726994,1781878241000,-619.23236792,0.00016515,2]
[425726971,1781878241000,-500.0,0.00016438,2]
[425726964,1781878241000,-500.0,0.00016438,2]
[425726969,1781878241000,-500.0,0.00016438,2]
[425726966,1781878241000,-500.0,0.00016438,2]
[425727018,1781878242000,-500.0,0.00016712,2]
[425727020,1781878242000,-500.0,0.00016712,2]
[425727022,1781878242000,-500.0,0.00016712,2]
[425727023,1781878242000,-500.0,0.00016712,2]
[425727021,1781878242000,-1000.0,0.00016712,2]
[425727024,1781878242000,-500.0,0.00016712,2]
[425727025,1781878242000,-500.0,0.00016712,2]
[425727029,1781878242000,-500.0,0.00016712,2]
[425727031,1781878242000,-500.0,0.00016712,2]
[425727033,1781878242000,-500.0,0.00016712,2]
[425727028,1781878242000,-500.0,0.00016712,2]
[425727030,1781878242000,-500.0,0.00016712,2]
[425727036,1781878242000,-500.0,0.00016712,2]
[425727027,1781878242000,-534.27101981,0.00016712,2]
[425727032,1781878242000,-500.0,0.00016712,2]
[425727015,1781878242000,-500.0,0.00016712,2]
[425727034,1781878242000,-500.0,0.00016712,2]
[425727013,1781878242000,-500.0,0.00016712,2]
[425726995,1781878242000,-500.0,0.00016515,2]
[425727009,1781878242000,-500.0,0.00016712,2]
[425727037,1781878242000,-500.0,0.00016712,2]
[425726996,1781878242000,-500.0,0.00016515,2]
[425726997,1781878242000,-500.0,0.00016515,2]
[425726998,1781878242000,-500.0,0.00016515,2]
[425726999,1781878242000,-500.0,0.00016711,2]
[425727003,1781878242000,-311.8640142,0.00016711,2]
[425727001,1781878242000,-625.0,0.00016711,2]
[425727002,1781878242000,-500.0,0.00016711,2]
[425727007,1781878242000,-500.0,0.00016712,2]
[425727004,1781878242000,-225.4294,0.00016712,2]
[425727006,1781878242000,-500.0,0.00016712,2]
[425727005,1781878242000,-500.0,0.00016712,2]
[425727014,1781878242000,-500.0,0.00016712,2]
[425727011,1781878242000,-500.0,0.00016712,2]
[425727008,1781878242000,-500.0,0.00016712,2]
[425727012,1781878242000,-500.0,0.00016712,2]
[425727016,1781878242000,-500.0,0.00016712,2]
[425727017,1781878242000,-500.0,0.00016712,2]
[425727041,1781878242000,-500.0,0.00016712,2]
[425727038,1781878242000,-500.0,0.00016712,2]
[425727040,1781878242000,-599.0175644,0.00016712,2]
[425727062,1781878242000,-500.0,0.00016712,2]
[425727070,1781878242000,-500.0,0.00016712,2]
[425727069,1781878242000,-500.0,0.00016712,2]
[425727072,1781878242000,-500.0,0.00016712,2]
[425727073,1781878242000,-1000.0,0.00016712,2]
[425727063,1781878242000,-500.0,0.00016712,2]
[425727085,1781878242000,-500.0,0.00016712,2]
[425727074,1781878242000,-500.0,0.00016712,2]
[425727083,1781878242000,-500.0,0.00016712,2]
[425727077,1781878242000,-500.0,0.00016712,2]
[425727080,1781878242000,-500.0,0.00016712,2]
[425727076,1781878242000,-500.0,0.00016712,2]
[425727079,1781878242000,-500.0,0.00016712,2]
[425727078,1781878242000,-500.0,0.00016712,2]
[425727081,1781878242000,-500.0,0.00016712,2]
[425727086,1781878242000,-500.0,0.00016712,2]
[425727044,1781878242000,-1387.2548,0.00016712,2]
[425727068,1781878242000,-500.0,0.00016712,2]
[425727066,1781878242000,-500.0,0.00016712,2]
[425727082,1781878242000,-212.35189791,0.00016712,2]
[425727071,1781878242000,-500.0,0.00016712,2]
[425727039,1781878242000,-500.0,0.00016712,2]
[425727064,1781878242000,-500.0,0.00016712,2]
[425727043,1781878242000,-500.0,0.00016712,2]
[425727051,1781878242000,-500.0,0.00016712,2]
[425727052,1781878242000,-500.0,0.00016712,2]
[425727046,1781878242000,-500.0,0.00016712,2]
[425727050,1781878242000,-500.0,0.00016712,2]
[425727045,1781878242000,-500.0,0.00016712,2]
[425727047,1781878242000,-500.0,0.00016712,2]
[425727048,1781878242000,-500.0,0.00016712,2]
[425727058,1781878242000,-500.0,0.00016712,2]
[425727053,1781878242000,-500.0,0.00016712,2]
[425727059,1781878242000,-500.0,0.00016712,2]
[425727057,1781878242000,-530.66536063,0.00016712,2]
[425727055,1781878242000,-500.0,0.00016712,2]
[425727060,1781878242000,-500.0,0.00016712,2]
[425727054,1781878242000,-500.0,0.00016712,2]
[425727061,1781878242000,-500.0,0.00016712,2]
[425727067,1781878242000,-500.0,0.00016712,2]
[425727118,1781878243000,-500.0,0.00016712,2]
[425727124,1781878243000,-500.0,0.00016712,2]
[425727125,1781878243000,-500.0,0.00016712,2]
[425727123,1781878243000,-500.0,0.00016712,2]
[425727119,1781878243000,-500.0,0.00016712,2]
[425727115,1781878243000,-500.0,0.00016712,2]
[425727134,1781878243000,-164.89,0.00016712,2]
[425727117,1781878243000,-500.0,0.00016712,2]
[425727127,1781878243000,-500.0,0.00016712,2]
[425727148,1781878243000,-282.9855083,0.00016772,2]
[425727136,1781878243000,-500.0,0.00016712,2]
[425727138,1781878243000,-500.0,0.00016712,2]
[425727129,1781878243000,-500.0,0.00016712,2]
[425727132,1781878243000,-500.0,0.00016712,2]
[425727144,1781878243000,-457.9711583,0.00016772,2]
[425727141,1781878243000,-398.44685072,0.00016718,2]
[425727151,1781878243000,-203.71472788,0.00016787,2]
[425727154,1781878243000,-100.03316875,0.00016788,2]
[425727116,1781878243000,-500.0,0.00016712,2]
[425727122,1781878243000,-2297.82,0.00016712,2]
[425727147,1781878243000,-457.9711583,0.00016772,2]
[425727090,1781878243000,-221.65,0.00016712,2]
[425727114,1781878243000,-500.0,0.00016712,2]
[425727088,1781878243000,-500.0,0.00016712,2]
[425727089,1781878243000,-368.40362075,0.00016712,2]
[425727095,1781878243000,-500.0,0.00016712,2]
[425727087,1781878243000,-500.0,0.00016712,2]